bitfinex/quotes_ETHUSD_20250324
["timestamp","ask_amount","ask_price","bid_price","bid_amount"]
[1742822864638,4.80987,2079.1,2078.9,4.575]
[1742822864856,0.7663,2079.2,2078.9,4.575]
[1742822864857,5.57586,2079.2,2078.9,4.575]
[1742822865162,4.80986,2079.1,2078.9,4.575]
[1742822865625,6.05288688,2079.3,2078.9,4.575]
[1742822865823,6.05288688,2079.3,2079.0,4.80985]
[1742822866056,6.05288688,2079.3,2079.2,0.3841]
[1742822866363,6.05288688,2079.3,2079.2,5.19364]
[1742822867331,5.60802,2079.6,2079.2,10.00318]
[1742822867332,6.05288688,2079.5,2079.2,10.00318]
[1742822867530,6.05288688,2079.5,2079.3,9.38424]
[1742822867856,6.05288688,2079.5,2079.4,4.80907]
[1742822868747,6.05288688,2079.5,2079.4,5.19317]
[1742822868928,6.05288688,2079.5,2079.4,7.131863]
[1742822870559,6.05288688,2080.1,2079.8,0.3841]
[1742822870759,6.05288688,2080.1,2079.9,4.575]
[1742822871459,4.80702,2080.3,2080.0,4.80766]
[1742822871767,5.63277,2080.4,2080.0,4.80753]
[1742822871930,4.80712,2080.3,2079.9,9.38287]
[1742822872263,4.80712,2080.3,2079.9,15.648124]
[1742822872642,4.80712,2080.3,2079.9,10.840254]
[1742822872847,4.80712,2080.3,2079.9,15.648044]
[1742822873044,4.80712,2080.3,2080.0,4.80768]
[1742822873361,10.85945688,2080.5,2080.0,4.80769]
[1742822873537,6.05288688,2080.5,2080.2,4.80713]
[1742822873734,6.05288688,2080.5,2080.3,4.575]
[1742822874335,6.05288688,2080.5,2080.3,9.38198]
[1742822875858,6.05288688,2080.5,2080.3,4.575]
[1742822877977,9.61288,2080.6,2080.3,4.575]
[1742822878977,4.80653,2080.5,2080.4,0.11365126]
[1742822880293,6.37311169,2080.5,2080.4,0.11365126]
[1742822880485,4.80692,2080.4,2080.1,4.573]
[1742822881375,4.807,2080.3,2080.1,4.573]
[1742822881576,4.80692,2080.4,2080.1,9.38041]
[1742822881790,9.61385,2080.4,2080.1,4.573]
[1742822881989,4.80702,2080.3,2080.1,4.573]
[1742822882280,4.80692,2080.4,2080.1,4.573]
[1742822882456,9.61387,2080.4,2080.1,4.573]
[1742822882652,4.80692,2080.4,2080.1,4.573]
[1742822883575,9.61384,2080.4,2080.1,4.573]
[1742822883777,6.00808217,2080.4,2080.1,4.573]
[1742822883953,12.06096905,2080.4,2080.1,4.573]
[1742822884161,4.807,2080.3,2080.1,4.573]
[1742822885186,12.06096905,2080.4,2080.1,4.573]
[1742822885388,6.05288688,2080.4,2080.1,9.38036]
[1742822886674,6.05288688,2080.4,2080.2,4.80718]
[1742822886866,6.05288688,2080.4,2080.1,9.38036]
[1742822887070,6.05288688,2080.4,2080.1,9.38033]
[1742822887288,10.85947688,2080.5,2080.1,10.356773]
[1742822887589,10.85947688,2080.5,2080.2,4.80722]
[1742822888393,10.85947688,2080.5,2080.1,15.164153]
[1742822888691,10.85947688,2080.5,2080.1,9.38033]
[1742822889389,10.85947688,2080.5,2080.1,14.18765]
[1742822890098,10.85947688,2080.5,2080.1,9.38032]
[1742822891094,6.05288688,2080.5,2080.2,4.80712]
[1742822891263,6.05288688,2080.5,2080.3,4.80692]
[1742822892812,11.63818688,2080.7,2080.2,5.19122]
[1742822892966,4.80631,2080.6,2080.2,9.99832]
[1742822893495,4.80631,2080.6,2080.3,4.80699]
[1742822893697,4.80631,2080.6,2080.2,5.1912]
[1742822893698,4.80631,2080.6,2080.2,0.3841]
[1742822893876,4.80661,2080.5,2080.1,9.3804]
[1742822894398,4.80661,2080.5,2080.1,14.18771]
[1742822894775,4.80631,2080.6,2080.2,4.80721]
[1742822896968,4.80631,2080.6,2080.1,9.38031]
[1742822897168,4.80653,2080.5,2080.1,14.18768]
[1742822897595,11.63819688,2080.7,2080.1,9.38031]
[1742822897815,4.80634,2080.6,2080.2,4.8072]
[1742822900316,4.80634,2080.6,2080.3,4.80699]
[1742822900476,13.58261157,2080.7,2080.3,4.80699]
[1742822900807,4.8063,2080.6,2080.3,4.80699]
[1742822901107,13.58261157,2080.7,2080.3,4.80699]
[1742822901302,18.38883157,2080.7,2080.3,4.80699]
[1742822901715,13.58261157,2080.7,2080.3,4.80699]
[1742822902009,6.83208688,2080.7,2080.4,4.80675]
[1742822902393,6.05288688,2080.7,2080.4,4.80675]
[1742822902905,6.05288688,2080.7,2080.3,0.3841]
[1742822903204,5.59673,2080.9,2080.5,4.80644]
[1742822903205,6.05288688,2080.8,2080.5,4.80644]
[1742822903393,6.05288688,2080.8,2080.6,4.571]
[1742822903601,6.05288688,2080.8,2080.6,9.37726]
[1742822904003,6.05288688,2080.8,2080.6,4.571]
[1742822907998,6.05288688,2080.8,2080.6,9.37727]
[1742822908200,6.05288688,2080.8,2080.6,11.17975]
[1742822908602,6.05288688,2080.8,2080.6,6.37348]
[1742822909522,6.05288688,2080.8,2080.7,4.80607]
[1742822909703,6.05288688,2081.0,2080.7,4.80607]
[1742822910339,6.05288688,2081.0,2080.7,9.61204]
[1742822910530,6.05288688,2081.0,2080.8,6.404372]
[1742822911319,6.05288688,2081.0,2080.6,11.17975]
[1742822912022,6.05288688,2081.0,2080.6,11.17963]
[1742822912223,6.05288688,2081.0,2080.7,4.80599]
[1742822912427,0.8004,2080.9,2080.6,9.37715]
[1742822913020,6.05288688,2081.0,2080.7,5.19001]
[1742822913327,6.05288688,2081.0,2080.7,1.360201]
[1742822913917,6.05288688,2081.0,2080.7,6.166101]
[1742822914503,6.05288688,2081.0,2080.8,4.80583]
[1742822915019,6.05288688,2081.0,2080.7,6.166201]
[1742822916130,6.05288688,2081.1,2080.7,6.166201]
[1742822917031,6.05288688,2081.1,2080.7,10.972131]
[1742822917330,6.05288688,2081.1,2080.8,4.80579]
[1742822917633,6.05288688,2081.1,2080.8,6.3600531]
[1742822917836,0.8304,2081.0,2080.7,0.976101]
[1742822918020,5.63586,2081.0,2080.8,4.57]
[1742822918528,0.8304,2081.0,2080.8,4.57]
[1742822919527,6.05288688,2081.1,2080.8,4.57]
[1742822919739,6.05288688,2081.1,2080.8,5.507584]
[1742822919896,6.05288688,2081.1,2080.8,4.57]
[1742822920407,6.05288688,2081.1,2080.8,9.37571]
[1742822922335,6.05288688,2081.1,2080.8,14.18146]
[1742822922498,6.05288688,2081.1,2080.8,9.37571]
[1742822922858,6.05288688,2081.3,2081.0,5.18929]
[1742822923029,6.05288688,2081.3,2081.1,5.804587]
[1742822923421,6.05288688,2081.3,2081.1,10.609637]
[1742822923622,6.05288688,2081.3,2081.1,5.804527]
[1742822923822,6.05288688,2081.3,2081.1,5.804467]
[1742822924231,6.05288688,2081.3,2081.2,4.80492]
[1742822924422,6.05288688,2081.3,2081.1,0.999477]
[1742822924935,6.05288688,2081.3,2081.1,5.804617]
[1742822925344,6.05288688,2081.3,2081.2,5.6683997]
[1742822926435,0.7906,2081.4,2080.8,0.3841]
[1742822926645,0.7866,2081.1,2080.4,4.80675]
[1742822926851,4.80553,2081.0,2080.5,4.569]
[1742822927137,5.59232,2080.9,2080.5,4.569]
[1742822927336,5.59232,2080.9,2080.5,6.025674]
[1742822928204,10.39811,2080.9,2080.5,6.025674]
[1742822928406,5.59232,2080.9,2080.5,4.569]
[1742822928741,4.8059,2080.8,2080.5,4.569]
[1742822930855,15.66479688,2080.8,2080.5,4.569]
[1742822931031,10.85878688,2080.8,2080.5,4.569]
[1742822931553,15.66481688,2080.8,2080.5,4.569]
[1742822931752,10.85878688,2080.8,2080.5,4.569]
[1742822939070,4.8061,2080.7,2080.5,4.569]
[1742822939281,0.804,2080.6,2080.5,4.569]
[1742822941975,11.64573688,2080.8,2080.5,4.569]
[1742822945575,6.83988688,2080.8,2080.5,9.3755]
[1742822946142,11.64572688,2080.8,2080.5,4.569]
[1742822947379,0.7824,2080.5,2080.0,0.3841]
[1742822947692,4.80787,2080.0,2079.6,0.3841]
[1742822947868,5.63979,2079.9,2079.6,4.568]
[1742822948177,0.8318,2079.9,2079.6,4.568]
[1742822948392,0.8318,2079.9,2079.6,9.37653]
[1742822948681,5.63983,2079.9,2079.6,4.568]
[1742822949647,4.80816,2079.8,2079.6,4.568]
[1742822949846,4.80816,2079.8,2079.5,4.568]
[1742822950547,4.80816,2079.8,2079.5,9.37682]
[1742822950746,5.63977,2079.9,2079.5,10.795407]
[1742822951380,6.88468688,2079.9,2079.6,4.80859]
[1742822951879,6.88468688,2079.9,2079.5,10.795407]
[1742822952079,11.69264688,2079.9,2079.5,10.795307]
[1742822952243,11.69264688,2079.9,2079.5,10.795427]
[1742822953389,4.80818,2079.8,2079.5,5.986587]
[1742822953587,4.80818,2079.8,2079.5,4.568]
[1742822954272,11.69264688,2079.9,2079.5,9.3768]
[1742822954473,16.50074688,2079.9,2079.5,9.3768]
[1742822954947,6.88468688,2079.9,2079.6,4.80849]
[1742822955147,6.88468688,2079.9,2079.6,6.227021]
[1742822955450,6.88468688,2079.9,2079.6,6.226971]
[1742822955782,6.05288688,2079.9,2079.7,4.80834]
[1742822956174,6.05288688,2079.9,2079.6,6.226971]
[1742822958390,6.05288688,2079.9,2079.8,5.19225]
[1742822958547,6.05288688,2079.9,2079.8,6.33897325]
[1742822959057,6.05288688,2079.9,2079.8,5.71572325]
[1742822959276,6.05288688,2079.9,2079.8,4.569]
[1742822959457,10.86080688,2079.9,2079.8,4.569]
[1742822960465,6.05288688,2079.9,2079.8,4.569]
[1742822961396,6.05288688,2079.9,2079.8,9.37715]
[1742822963178,5.62651,2080.2,2079.8,9.37715]
[1742822963366,5.62651,2080.2,2079.8,14.18517]
[1742822963566,0.8192,2080.2,2079.9,4.80778]
[1742822963774,10.85995688,2080.3,2079.9,9.61556]
[1742822964100,6.05288688,2080.3,2079.9,4.80778]
[1742822964268,6.05288688,2080.3,2080.0,4.80767]
[1742822964592,10.85988688,2080.3,2079.9,4.80788]
[1742822965482,15.66709688,2080.3,2079.9,4.80788]
[1742822966301,10.85988688,2080.3,2079.9,4.80788]
[1742822966604,6.05288688,2080.3,2080.0,4.80763]
[1742822966987,10.85988688,2080.3,2080.0,4.80763]
[1742822970221,10.85988688,2080.3,2079.9,6.4105037]
[1742822970222,4.807,2080.3,2079.9,6.4105037]
[1742822970528,10.897,2080.3,2079.9,6.4105037]
[1742822970701,15.70417,2080.3,2079.9,4.8079]
[1742822971224,15.70415,2080.3,2079.9,4.8079]
[1742822971423,15.70415,2080.3,2079.8,9.37712]
[1742822971424,6.09,2080.3,2079.8,9.37712]
[1742822971593,9.61469,2080.2,2079.8,9.37712]
[1742822971796,4.80732,2080.2,2079.8,9.37712]
[1742822972338,4.80732,2080.2,2079.8,9.377]
[1742822972544,4.80732,2080.2,2079.9,4.8079]
[1742822972750,4.80732,2080.2,2079.8,10.35318]
[1742822973039,0.7568,2080.1,2079.8,15.16125]
[1742822973701,0.7568,2080.1,2079.9,4.8079]
[1742822974111,4.80732,2080.2,2079.9,4.8079]
[1742822974112,5.62448,2080.3,2079.9,4.8079]
[1742822974286,5.62448,2080.3,2079.9,9.61569]
[1742822974494,4.8068,2080.4,2080.0,5.19178]
[1742822974796,6.09,2080.3,2080.0,9.99932]
[1742822975225,5.62396,2080.5,2080.1,4.80738]
[1742822975387,5.62396,2080.5,2080.2,4.569]
[1742822976497,4.80677,2080.4,2080.2,4.569]
[1742822977807,9.61374,2080.4,2080.2,4.569]
[1742822978029,5.62397,2080.5,2080.2,4.569]
[1742822978227,4.80682,2080.4,2080.2,4.569]
[1742822980232,4.80699,2080.3,2080.2,4.569]
[1742822980397,9.61375,2080.4,2080.2,4.569]
[1742822981009,4.80682,2080.4,2080.2,4.569]
[1742822981193,9.61377,2080.4,2080.2,4.569]
[1742822982127,9.61375,2080.4,2080.2,4.569]
[1742822982329,4.80699,2080.3,2080.2,4.569]
[1742822982534,5.62412,2080.5,2080.2,4.569]
[1742822982916,4.80687,2080.4,2080.2,4.569]
[1742822983859,4.80658,2080.5,2080.2,4.569]
[1742822984021,4.80658,2080.5,2080.2,9.37615]
[1742822984218,7.80587,2080.8,2080.2,6.025756]
[1742822984545,7.80587,2080.8,2080.4,4.80663]
[1742822984713,4.80587,2080.8,2080.4,4.80663]
[1742822984920,4.80547,2081.0,2080.6,5.19031]
[1742822985222,7.80547,2081.0,2080.7,4.568]
[1742822985441,4.8058,2080.9,2080.7,4.568]
[1742822985647,4.80538,2081.0,2080.7,4.568]
[1742822986126,4.80563,2080.9,2080.7,4.568]
[1742822986450,7.80538,2081.0,2080.7,4.568]
[1742822986653,12.61092,2081.0,2080.7,4.568]
[1742822986825,7.80538,2081.0,2080.7,4.568]
[1742822987126,12.61091,2081.0,2080.7,4.568]
[1742822987325,7.80538,2081.0,2080.7,9.37407]
[1742822987848,4.80563,2080.9,2080.7,4.568]
[1742822988447,7.80538,2081.0,2080.7,4.568]
[1742822988755,4.80584,2080.8,2080.7,4.568]
[1742822989455,4.80541,2081.0,2080.7,4.568]
[1742822990130,9.61095,2081.0,2080.7,4.568]
[1742822990961,4.80564,2080.9,2080.7,4.568]
[1742822991158,4.80628,2080.7,2080.2,5.19119]
[1742822991362,4.8064,2080.6,2080.3,4.567]
[1742822991666,4.80655,2080.5,2080.3,4.567]
[1742822991843,9.61319,2080.5,2080.3,4.567]
[1742822992051,4.80655,2080.5,2080.3,4.567]
[1742822992459,5.55781,2080.6,2080.3,4.567]
[1742822992764,10.36428,2080.6,2080.3,4.567]
[1742822993368,4.80653,2080.5,2080.3,4.567]
[1742822993669,4.80653,2080.5,2080.1,4.80729]
[1742822993966,4.80685,2080.4,2080.2,4.567]
[1742822994335,9.61331,2080.5,2080.1,4.80729]
[1742822994539,4.80661,2080.5,2080.3,4.567]
[1742822995269,5.55787,2080.6,2080.3,4.567]
[1742822995469,9.61234,2080.7,2080.3,9.75808]
[1742822995670,4.80639,2080.6,2080.3,4.9511]
[1742822997138,4.80639,2080.6,2080.3,9.75809]
[1742822997455,4.80609,2080.7,2080.4,1.456518]
[1742822997777,4.80609,2080.7,2080.4,6.263208]
[1742822998689,4.80609,2080.7,2080.4,1.456518]
[1742822998887,9.61233,2080.7,2080.4,1.456518]
[1742822999069,9.61233,2080.7,2080.3,9.75806]
[1742822999914,4.80609,2080.7,2080.3,9.75806]
[1742823000060,9.61234,2080.7,2080.3,9.75806]
[1742823000261,4.80609,2080.7,2080.3,9.75806]
[1742823000559,4.80609,2080.7,2080.3,6.407626]
[1742823000787,4.80633,2080.6,2080.3,4.567]
[1742823000984,9.61283,2080.6,2080.3,4.567]
[1742823001184,4.80757,2080.1,2079.9,4.566]
[1742823001384,4.80769,2080.0,2079.9,4.566]
[1742823001899,5.60577,2080.1,2079.9,4.566]
[1742823002071,10.41339,2080.1,2079.9,4.566]
[1742823002273,4.80769,2080.0,2079.8,4.566]
[1742823002459,4.80769,2080.0,2079.6,9.61699]
[1742823002663,4.80769,2080.0,2079.7,8.108009]
[1742823002896,4.80749,2080.1,2079.7,12.916369]
[1742823003213,4.80749,2080.1,2079.7,13.300399]
[1742823003214,4.80758,2080.1,2079.7,13.300399]
[1742823003367,4.80735,2080.2,2079.8,4.80794]
[1742823003565,9.61472,2080.2,2079.8,4.80794]
[1742823003767,4.80735,2080.2,2079.9,1.3300049]
[1742823004293,4.80735,2080.2,2079.9,6.1379049]
[1742823004497,5.63366,2080.3,2079.9,6.1379049]
[1742823004795,4.80737,2080.2,2079.9,1.3300049]
[1742823004994,5.63362,2080.3,2079.7,8.492109]
[1742823004995,4.80779,2080.0,2079.7,8.492109]
[1742823005297,4.80815,2079.8,2079.7,3.542009]
[1742823005510,0.7862,2079.8,2078.9,0.3841]
[1742823005801,16.28851269,2080.2,2078.9,0.3841]
[1742823005802,0.7862,2079.5,2079.2,4.80946]
[1742823006094,9.61696,2079.7,2079.3,4.80921]
[1742823006293,4.80888,2079.5,2079.2,4.8094]
[1742823006493,4.8087,2079.6,2079.2,6.227916]
[1742823006801,5.5979,2079.7,2079.3,4.80921]
[1742823007104,0.7895,2079.7,2079.2,1.418516]
[1742823007276,0.7895,2079.7,2079.1,4.80964]
[1742823007462,5.59803,2079.7,2079.2,4.80951]
[1742823007667,10.4066,2079.7,2079.2,4.80951]
[1742823007868,4.80865,2079.6,2079.1,4.80961]
[1742823009696,5.59803,2079.7,2079.2,4.80944]
[1742823010306,5.29702645,2080.8,2079.3,0.3841]
[1742823010463,0.1,2080.9,2079.6,4.80851]
[1742823010464,0.7669,2080.1,2079.6,4.80851]
[1742823010667,3.0,2080.0,2079.6,5.19261]
[1742823010879,3.0,2080.0,2079.6,0.3841]
[1742823011081,9.145965,2080.0,2079.5,4.80879]
[1742823011281,4.80807,2079.9,2079.4,4.567]
[1742823011465,0.7734,2079.8,2079.4,4.567]
[1742823011668,0.7734,2079.8,2079.4,9.3759]
[1742823012277,0.7734,2079.8,2079.4,9.37607]
[1742823012604,0.8257,2079.6,2079.0,0.3841]
[1742823012803,0.8257,2079.6,2078.9,9.37703]
[1742823012993,9.61803,2079.5,2078.9,9.37703]
[1742823013194,4.809,2079.5,2079.0,4.80999]
[1742823013392,4.80898,2079.5,2079.0,4.80999]
[1742823013594,5.63451,2079.6,2079.1,4.8097]
[1742823013797,11.15405345,2079.6,2079.0,4.80994]
[1742823014099,4.80893,2079.5,2079.0,4.8099]
[1742823014278,4.80893,2079.5,2078.9,9.37718]
[1742823014482,4.80979,2079.1,2078.6,0.3841]
[1742823014725,4.81056,2078.8,2078.2,0.3841]
[1742823014875,0.8189,2078.7,2078.2,4.568]
[1742823015073,0.8189,2078.7,2078.2,9.37976]
[1742823015313,5.62968,2078.7,2078.2,9.37976]
[1742823016097,5.62968,2078.7,2078.2,9.37966]
[1742823016410,5.62968,2078.7,2078.2,4.568]
[1742823016595,4.81111,2078.6,2078.2,4.568]
[1742823017178,6.192598,2078.7,2078.2,9.37985]
[1742823017812,1.381868,2078.7,2078.3,4.8116]
[1742823018028,0.8189,2078.7,2078.3,4.81142]
[1742823018184,0.8189,2078.7,2078.4,4.81138]
[1742823018505,0.7861,2079.1,2078.6,4.81079]
[1742823018710,0.7861,2079.1,2078.7,4.568]
[1742823018914,8.59597,2079.1,2078.7,4.568]
[1742823019222,4.81005,2079.0,2078.7,4.568]
[1742823019378,9.936535,2079.1,2078.7,4.568]
[1742823019779,3.7861,2079.1,2078.7,4.568]
[1742823020005,0.8246,2079.3,2078.8,4.81042]
[1742823020206,5.63391,2079.3,2078.8,9.62077]
[1742823020387,5.63391,2079.3,2078.7,9.76278]
[1742823020711,5.63391,2079.3,2078.8,4.81046]
[1742823020880,4.80955,2079.2,2078.7,9.76276]
[1742823021080,4.80958,2079.2,2078.7,9.76266]
[1742823021294,4.80958,2079.2,2078.7,4.81056]
[1742823021484,4.80987,2079.1,2078.8,4.569]
[1742823021795,4.80964,2079.2,2078.8,4.569]
[1742823022202,6.978218,2079.3,2078.8,4.569]
[1742823022381,4.80955,2079.2,2078.8,4.569]
[1742823023332,6.978218,2079.3,2078.8,4.569]
[1742823023496,0.6978218,2079.2,2078.8,4.569]
[1742823023895,0.6978218,2079.2,2078.6,4.81086]
[1742823024119,0.8231,2079.0,2078.4,4.81126]
[1742823024431,5.63319,2079.0,2078.5,9.38008]
[1742823024632,4.8096,2079.2,2078.7,4.81059]
[1742823024832,5.6327,2079.2,2078.7,4.81059]
[1742823025023,4.80979,2079.1,2078.8,0.519469]
[1742823025224,4.80979,2079.1,2078.7,4.81059]
[1742823025622,10.44241,2079.2,2078.7,4.81059]
[1742823025935,4.80984,2079.1,2078.7,4.81059]
[1742823026130,5.63267,2079.2,2078.8,4.81043]
[1742823026342,7.80938,2079.3,2078.8,4.81031]
[1742823026514,7.80938,2079.3,2078.8,4.81038]
[1742823026732,5.63033,2079.4,2078.9,4.569]
[1742823026733,0.8211,2079.4,2078.9,4.569]
[1742823026912,0.8078,2079.6,2079.3,4.80921]
[1742823027238,4.80826,2079.8,2079.3,4.80921]
[1742823027239,3.8078,2079.8,2079.4,4.80897]
[1742823027402,0.8078,2080.3,2079.4,1.321897]
[1742823027607,4.80761,2080.1,2079.6,4.80852]
[1742823027841,4.80802,2079.9,2079.7,4.569]
[1742823028052,4.80746,2080.1,2079.7,4.569]
[1742823028207,5.6148,2080.3,2079.7,4.569]
[1742823028409,5.57425,2079.8,2079.7,4.569]
[1742823029534,0.8172,2080.1,2079.7,4.569]
[1742823029741,0.8172,2080.3,2079.9,4.8079]
[1742823030108,3.8172,2080.3,2079.9,4.8079]
[1742823030309,3.8172,2080.3,2080.0,4.80765]
[1742823030537,3.8172,2080.3,2079.9,4.8079]
[1742823030538,5.160251,2080.3,2079.9,4.80778]
[1742823030931,4.80655,2080.5,2079.7,9.37737]
[1742823031129,0.7865,2080.5,2080.0,0.3841]
[1742823031346,4.80692,2080.4,2080.1,4.568]
[1742823031730,5.59304,2080.5,2080.1,4.568]
[1742823031731,8.59308,2080.5,2080.1,4.568]
[1742823032251,0.7865,2080.5,2080.1,4.568]
[1742823032415,4.80592,2080.8,2080.3,4.80682]
[1742823032739,4.80582,2080.9,2080.4,4.80666]
[1742823032910,7.80586,2080.8,2080.5,4.568]
[1742823033312,4.80586,2080.8,2080.5,4.568]
[1742823033511,1.044118,2080.8,2080.5,4.568]
[1742823033814,4.044118,2080.8,2080.5,4.568]
[1742823034008,1.044118,2080.8,2080.5,4.568]
[1742823034424,1.044118,2080.8,2080.5,9.37453]
[1742823034820,5.63489,2081.0,2080.5,4.568]
[1742823035021,5.63489,2081.0,2080.5,9.37433]
[1742823035224,4.80561,2080.9,2080.5,9.37433]
[1742823035425,5.63489,2081.0,2080.5,9.37433]
[1742823035633,5.63489,2081.0,2080.6,4.80626]
[1742823035840,0.8295,2081.0,2080.7,4.80603]
[1742823036560,0.7538,2081.2,2080.6,1.456469]
[1742823036767,5.56834,2081.4,2080.9,9.6109]
[1742823036976,5.56834,2081.4,2080.9,9.37241]
[1742823037258,5.56834,2081.4,2081.1,4.80502]
[1742823037263,0.7638,2081.4,2081.1,4.80502]
[1742823037469,0.01,2081.4,2081.1,4.80502]
[1742823037922,0.01,2081.4,2081.1,9.61003]
[1742823038142,0.01,2081.4,2081.3,4.80468]
[1742823038377,0.01,2081.4,2081.3,9.41972207]
[1742823038590,0.01,2081.4,2081.3,9.37168]
[1742823038799,0.01,2081.4,2081.3,9.41972075]
[1742823038950,0.01,2081.4,2081.3,9.37168]
[1742823039273,0.01,2081.4,2081.3,6.1648403]
[1742823039477,0.01,2081.4,2081.3,10.9695203]
[1742823039674,0.01,2081.4,2081.3,14.3536203]
[1742823040973,0.01,2081.4,2081.3,14.3526203]
[1742823043648,0.036578,2081.8,2081.7,4.80376]
[1742823043854,0.036578,2081.8,2081.7,10.713657]
[1742823044251,0.036578,2081.8,2081.7,13.713657]
[1742823045881,0.036578,2081.8,2081.7,14.263657]
[1742823046058,0.01,2083.4,2081.8,3.55]
[1742823046251,4.80043,2083.2,2082.1,3.0]
[1742823046452,4.80094,2083.0,2082.6,4.80162]
[1742823046677,4.80057,2083.1,2082.7,4.604]
[1742823046845,4.80057,2083.1,2082.7,9.40544]
[1742823047355,0.7777,2083.3,2082.7,9.40535]
[1742823047550,4.80047,2083.2,2082.7,14.20657]
[1742823047857,4.80079,2083.0,2082.7,4.604]
[1742823048058,4.80053,2083.1,2082.7,4.604]
[1742823048059,5.83923,2083.2,2082.7,9.40539]
[1742823048259,5.83913,2083.2,2082.7,4.604]
[1742823048462,4.80066,2083.1,2082.7,9.40535]
[1742823048981,1.03882,2083.2,2082.8,4.80105]
[1742823049291,5.83917,2083.2,2082.8,4.80107]
[1742823049482,5.83917,2083.2,2082.8,9.60215]
[1742823049653,5.83917,2083.2,2082.8,4.80107]
[1742823050082,5.83917,2083.2,2082.8,4.80105]
[1742823050352,3.7777,2083.3,2083.0,4.80067]
[1742823050660,0.01,2083.4,2083.1,9.40444]
[1742823050855,0.01,2083.4,2083.1,9.40451]
[1742823051052,9.60996,2083.4,2083.1,4.604]
[1742823051247,0.01,2083.4,2083.1,9.40435]
[1742823051479,0.01,2083.4,2083.2,4.80009]
[1742823051699,0.01,2083.4,2082.7,28.7801]
[1742823051904,4.80997,2083.4,2083.0,9.40754]
[1742823052197,0.01,2083.4,2083.1,4.80043]
[1742823052499,0.01,2083.4,2083.1,4.8004]
[1742823052678,4.80986,2083.4,2083.1,4.8004]
[1742823052857,0.01,2083.4,2083.1,4.8004]
[1742823053389,4.80988,2083.4,2083.0,14.20835]
[1742823053561,0.01,2083.4,2083.1,4.80045]
[1742823053762,0.01,2083.4,2083.1,4.80043]
[1742823053957,0.01,2083.4,2083.1,4.80041]
[1742823054298,0.01,2083.4,2083.1,9.6008]
[1742823054487,0.01,2083.4,2083.2,4.80023]
[1742823054692,0.01,2083.4,2083.3,4.80007]
[1742823054888,0.01,2083.4,2083.2,4.80013]
[1742823054889,0.01,2083.4,2083.2,4.80023]
[1742823055593,0.01,2083.4,2083.2,4.80019]
[1742823056398,0.01,2083.4,2083.2,4.80022]
[1742823056767,0.01,2083.4,2083.2,5.796252]
[1742823056961,0.01,2083.4,2083.2,0.996032]
[1742823057506,4.80993,2083.4,2083.1,4.80053]
[1742823057669,4.80012,2083.3,2082.8,6.218903]
[1742823057862,4.80012,2083.3,2082.9,9.39984]
[1742823058493,4.80012,2083.3,2082.9,14.20071]
[1742823058680,4.80012,2083.3,2082.9,9.39984]
[1742823058984,9.60039,2083.3,2082.9,13.0596043]
[1742823059195,4.80012,2083.3,2082.9,13.0596043]
[1742823059372,4.80012,2083.3,2082.7,25.7801]
[1742823059373,4.80064,2083.1,2082.7,30.58153]
[1742823059566,4.80086,2083.0,2082.8,4.6]
[1742823059773,4.80086,2083.0,2082.9,4.6]
[1742823060183,4.80102,2082.9,2082.7,25.396]
[1742823060369,4.80187,2082.6,2082.2,9.40759]
[1742823060697,4.80183,2082.6,2082.2,9.40748]
[1742823060908,0.8186,2082.8,2082.2,9.40748]
[1742823060909,4.80216,2082.4,2082.2,4.605]
[1742823061405,4.80188,2082.6,2082.2,4.605]
[1742823061616,0.8186,2082.8,2082.5,4.80169]
[1742823061779,0.7511,2083.0,2082.6,5.097169]
[1742823062100,4.80108,2082.9,2082.6,5.097169]
[1742823062299,0.7511,2083.0,2082.7,4.80137]
[1742823062509,0.7511,2083.0,2082.7,4.84935114]
[1742823062690,4.80038,2083.2,2082.8,4.80115]
[1742823062895,4.80053,2083.1,2082.8,1.4699609]
[1742823063095,9.60085,2083.2,2082.8,6.2710909]
[1742823063395,4.8003,2083.2,2082.9,4.80096]
[1742823063595,0.7548,2083.3,2083.0,9.42567]
[1742823063798,4.80992,2083.4,2083.0,10.51522309]
[1742823063980,4.80992,2083.4,2083.0,10.51517309]
[1742823064181,4.80992,2083.4,2083.0,15.31584309]
[1742823064479,0.01,2083.4,2083.1,4.80052]
[1742823064880,0.01,2083.4,2083.3,4.80007]
[1742823065107,0.01,2083.4,2083.3,5.79851]
[1742823065689,0.01,2083.4,2083.3,5.84650155]
[1742823065888,0.01,2083.4,2083.3,10.42951]
[1742823066702,0.01,2083.4,2083.3,9.43007]
[1742823068184,0.01,2083.4,2083.3,12.43007]
[1742823068379,0.01,2083.4,2083.3,12.81417]
[1742823068584,0.01,2083.4,2083.3,13.36417]
[1742823070343,0.1230105,2083.9,2083.8,5.18302]
[1742823070493,0.1230105,2083.9,2083.8,11.299165]
[1742823070839,0.1230105,2083.9,2083.8,6.116145]
[1742823071333,0.1230105,2083.9,2083.8,4.639]
[1742823071618,0.9105105,2083.9,2083.8,4.639]
[1742823071842,5.7092305,2083.9,2083.7,4.639]
[1742823072283,0.9105105,2083.9,2083.7,9.43814]
[1742823072483,0.1230105,2083.9,2083.7,9.43794]
[1742823072684,0.1230105,2083.9,2083.8,7.99985612]